[Event "Azerbaijan-ch 1st League 2025"]
[Site "Baku"]
[Date "2025.01.13"]
[Round "8.15"]
[White "Halafov, Ilgar"]
[Black "Garakhanov, Shamsi"]
[Result "1-0"]
[Annotator "NA"]
[ECO "A48"]
[WhiteElo "1990"]
[BlackElo "2022"]
[PlyCount "203"]
[EventDate "2025.01.05"]
[EventType "swiss"]
[EventCountry "AZE"]
[SourceTitle "playchess.com"]
[Source "ChessBase"]
[SourceQuality "1"]
[TimeControl "40/5400+30:1800+30"]

1. d4 {[%emt 0:00:02]} Nf6 {[%emt 0:00:06]} 2. Nf3 {[%emt 0:00:10]} g6 {[%emt 0:00:06]} 3. Bf4 {[%emt 0:00:12]} Bg7 {[%emt 0:00:18]} 4. e3 {[%emt 0:00:21]} O-O {[%emt 0:01:11]} 5. h3 {[%emt 0:00:09]} c5 {[%emt 0:00:28]} 6. c3 {[%emt 0:00:20]} b6 {[%emt 0:04:16]} 7. a4 {[%emt 0:00:25]} Bb7 {[%emt 0:03:29]} 8. Be2 {[%emt 0:01:45]} d6 {[%emt 0:00:44]} 9. O-O {[%emt 0:00:28]} Nbd7 {[%emt 0:00:41]} 10. a5 {[%emt 0:04:24]} bxa5 {[%emt 0:06:22]} 11. Qa4 {[%emt 0:00:10]} Nd5 {[%emt 0:10:23]} 12. Bg3 {[%emt 0:11:37]} cxd4 {[%emt 0:00:50]} 13. exd4 {[%emt 0:00:47]} h6 {[%emt 0:01:47]} 14. Qxa5 {[%emt 0:05:15]} Qxa5 {[%emt 0:00:37]} 15. Rxa5 {[%emt 0:00:09]} Kh8 {[%emt 0:03:08]} 16. Rd1 {[%emt 0:12:29]} N5f6 {[%emt 0:02:44]} 17. Nbd2 {[%emt 0:00:24]} Rfc8 {[%emt 0:09:57]} 18. Rda1 {[%emt 0:00:18]} Rab8 {[%emt 0:00:18]} 19. R1a2 {[%emt 0:02:32]} Nd5 {[%emt 0:14:21]} 20. Rxa7 {[%emt 0:02:11]} N7f6 {[%emt 0:02:52]} 21. Ne1 {[%emt 0:02:08]} Nh7 {[%emt 0:02:10]} 22. Nd3 {[%emt 0:04:01]} f5 {[%emt 0:00:41]} 23. f3 {[%emt 0:04:54]} Re8 {[%emt 0:01:33]} 24. Bf2 {[%emt 0:03:52]} e5 {[%emt 0:00:56]} 25. dxe5 {[%emt 0:00:23]} dxe5 {[%emt 0:00:01]} 26. Nc5 {[%emt 0:00:50]} Bc6 {[%emt 0:01:03]} 27. Nc4 {[%emt 0:03:47]} Nf4 {[%emt 0:02:28]} 28. Bf1 {[%emt 0:00:45]} Rbd8 {[%emt 0:00:41]} 29. Ra1 {[%emt 0:04:40]} e4 {[%emt 0:01:22]} 30. fxe4 {[%emt 0:00:46]} fxe4 {[%emt 0:00:09]} 31. Rc7 {[%emt 0:08:02]} Rc8 {[%emt 0:01:03]} 32. Raa7 {[%emt 0:01:00]} Rxc7 {[%emt 0:00:08]} 33. Rxc7 {[%emt 0:00:09]} Bd5 {[%emt 0:00:34]} 34. Nd6 {[%emt 0:03:19]} Rb8 {[%emt 0:00:52]} 35. Rc8+ {[%emt 0:14:34]} Rxc8 {[%emt 0:00:22]} 36. Nxc8 {[%emt 0:00:02]} Ba8 {[%emt 0:02:34]} 37. Nd6 {[%emt 0:02:09]} Ng5 {[%emt 0:02:23]} 38. h4 {[%emt 0:01:33]} Bf8 {[%emt 0:00:44]} 39. hxg5 {[%emt 0:06:57]} Bxd6 {[%emt 0:00:04]} 40. Bd4+ {[%emt 0:00:00]} Kh7 {[%emt 0:00:00]} 41. gxh6 {[%emt 0:02:04]} Kxh6 {[%emt 0:00:50]} 42. b4 {[%emt 0:06:16]} Kg5 {[%emt 0:01:29]} 43. b5 {[%emt 0:03:49]} Kf5 {[%emt 0:00:31]} 44. b6 {[%emt 0:07:31]} Bxc5 {[%emt 0:00:10]} 45. Bxc5 {[%emt 0:00:03]} Nd3 {[%emt 0:00:18]} 46. Bd4 {[%emt 0:00:46]} Kf4 {[%emt 0:09:47]} 47. Kh2 {[%emt 0:02:50]} g5 {[%emt 0:03:15]} 48. Be2 {[%emt 0:00:27]} g4 {[%emt 0:01:13]} 49. g3+ {[%emt 0:01:28]} Kf5 {[%emt 0:00:11]} 50. Be3 {[%emt 0:01:21]} Bb7 {[%emt 0:00:41]} 51. Kg1 {[%emt 0:00:46]} Bc8 {[%emt 0:02:22]} 52. Bd1 {[%emt 0:00:31]} Bb7 {[%emt 0:00:42]} 53. Ba4 {[%emt 0:00:19]} Ne5 {[%emt 0:00:12]} 54. Bb3 {[%emt 0:01:11]} Ng6 {[%emt 0:00:52]} 55. Kf2 {[%emt 0:00:35]} Ne7 {[%emt 0:01:21]} 56. Bd4 {[%emt 0:02:34]} Nd5 {[%emt 0:01:54]} 57. Ba4 {[%emt 0:01:00]} Ke6 {[%emt 0:01:03]} 58. c4 {[%emt 0:00:37]} Nb4 {[%emt 0:38:13]} 59. Ke3 {[%emt 0:00:39]} Kf5 {[%emt 0:00:00]} 60. Bc5 {[%emt 0:00:43]} Nc6 {[%emt 0:00:00]} 61. Bd4 {[%emt 0:00:41]} Ba8 {[%emt 0:00:00]} 62. Bb5 {[%emt 0:00:16]} Bb7 {[%emt 0:00:00]} 63. Bc3 {[%emt 0:00:38]} Nb8 {[%emt 0:00:00]} 64. Kd4 {[%emt 0:00:20]} Ke6 {[%emt 0:00:00]} 65. Bd2 {[%emt 0:01:28]} Ba8 {[%emt 0:00:00]} 66. Bf4 {[%emt 0:00:20]} Nc6+ {[%emt 0:00:00]} 67. Kc5 {[%emt 0:03:06]} Na5 {[%emt 0:00:00]} 68. Ba6 {[%emt 0:00:46]} Kd7 {[%emt 0:00:00]} 69. Bb5+ {[%emt 0:01:09]} Ke6 {[%emt 0:00:00]} 70. Kd4 {[%emt 0:00:30]} Nc6+ {[%emt 0:00:00]} 71. Ke3 {[%emt 0:00:13]} Bb7 {[%emt 0:00:00]} 72. Bc7 {[%emt 0:00:09]} Kf5 {[%emt 0:00:00]} 73. Ba4 {[%emt 0:00:45]} Ba8 {[%emt 0:00:00]} 74. Bc2 {[%emt 0:01:05]} Nb4 {[%emt 0:00:00]} 75. Bb1 {[%emt 0:00:24]} Bb7 {[%emt 0:00:00]} 76. Bd6 {[%emt 0:00:28]} Nd3 {[%emt 0:00:00]} 77. Bc2 {[%emt 0:01:04]} Ke6 {[%emt 0:00:00]} 78. Bc7 {[%emt 0:00:13]} Kf5 {[%emt 0:00:00]} 79. Ba4 {[%emt 0:00:17]} Ke6 {[%emt 0:00:00]} 80. Kd4 {[%emt 0:00:21]} Nb4 {[%emt 0:00:00]} 81. Bd1 {[%emt 0:01:31]} Kf5 {[%emt 0:00:00]} 82. Kc5 {[%emt 0:00:35]} Nd3+ {[%emt 0:00:00]} 83. Kd4 {[%emt 0:00:43]} Nb4 {[%emt 0:00:00]} 84. Ke3 {[%emt 0:00:25]} Nc6 {[%emt 0:00:15]} 85. Ba4 {[%emt 0:00:21]} Ba8 {[%emt 0:00:33]} 86. Bd6 {[%emt 0:00:14]} Bb7 {[%emt 0:00:31]} 87. Bb5 {[%emt 0:00:08]} Ke6 {[%emt 0:02:03]} 88. Bf4 {[%emt 0:00:32]} Na5 {[%emt 0:01:20]} 89. Kd4 {[%emt 0:00:25]} Nb3+ {[%emt 0:00:51]} 90. Kc3 {[%emt 0:00:53]} Na5 {[%emt 0:00:50]} 91. Kd4 {[%emt 0:01:08]} Nb3+ {[%emt 0:00:09]} 92. Ke3 {[%emt 0:00:17]} Na5 {[%emt 0:00:41]} 93. Bc7 {[%emt 0:00:14]} Nb3 {[%emt 0:00:59]} 94. Kf4 {[%emt 0:00:31]} Nd4 {[%emt 0:03:34]} 95. Ba4 {[%emt 0:00:24]} Ne2+ {[%emt 0:02:32]} 96. Ke3 {[%emt 0:00:16]} Nc3 {[%emt 0:00:11]} 97. Be8 {[%emt 0:00:22]} Nd1+ {[%emt 0:00:58]} 98. Kf4 {[%emt 0:01:13]} e3 {[%emt 0:00:21]} 99. Bh5 {[%emt 0:00:02]} Bf3 {[%emt 0:01:36]} 100. Bxg4+ {[%emt 0:00:21]} Bxg4 {[%emt 0:00:08]} 101. b7 {[%emt 0:00:04]} e2 {[%emt 0:00:11]} 102. b8=Q {[%emt 0:00:21]} 1-0

[Event "Azerbaijan-ch 1st League 2025"]
[Site "Baku"]
[Date "2025.01.13"]
[Round "8.16"]
[White "Baghirov, Orkhan"]
[Black "Safarli, Ramzi"]
[Result "1/2-1/2"]
[Annotator "RC"]
[ECO "A62"]
[WhiteElo "1989"]
[BlackElo "1792"]
[PlyCount "109"]
[EventDate "2025.01.05"]
[EventType "swiss"]
[EventCountry "AZE"]
[SourceTitle "playchess.com"]
[Source "ChessBase"]
[SourceQuality "1"]
[TimeControl "40/5400+30:1800+30"]

1. d4 {[%emt 0:00:01]} Nf6 {[%emt 0:04:23]} 2. c4 {[%emt 0:01:18]} c5 {[%emt 0:00:25]} 3. d5 {[%emt 0:00:21]} e6 {[%emt 0:00:32]} 4. Nc3 {[%emt 0:00:01]} exd5 {[%emt 0:00:09]} 5. cxd5 {[%emt 0:00:01]} d6 {[%emt 0:00:04]} 6. g3 {[%emt 0:02:03]} g6 {[%emt 0:00:22]} 7. Bg2 {[%emt 0:00:01]} Bg7 {[%emt 0:00:03]} 8. Nf3 {[%emt 0:00:05]} O-O {[%emt 0:00:06]} 9. O-O {[%emt 0:00:03]} Re8 {[%emt 0:00:03]} 10. Bf4 {[%emt 0:00:03]} Bf5 {[%emt 0:00:46]} 11. Nh4 {[%emt 0:00:40]} Bg4 {[%emt 0:00:13]} 12. Re1 {[%emt 0:09:45]} h6 {[%emt 0:07:59]} 13. h3 {[%emt 0:09:20]} Bc8 {[%emt 0:06:00]} 14. Nf3 {[%emt 0:04:06]} g5 {[%emt 0:01:24]} 15. Be3 {[%emt 0:02:13]} Ne4 {[%emt 0:04:21]} 16. Nxe4 {[%emt 0:05:15]} Rxe4 {[%emt 0:00:02]} 17. h4 {[%emt 0:00:08]} gxh4 {[%emt 0:14:10]} 18. Nxh4 {[%emt 0:01:57]} Rb4 {[%emt 0:28:08]} 19. Rb1 {[%emt 0:07:24]} Qf6 {[%emt 0:04:03]} 20. b3 {[%emt 0:07:55]} Rxh4 {[%emt 0:05:28]} 21. gxh4 {[%emt 0:00:02]} Bf5 {[%emt 0:00:04]} 22. Rc1 {[%emt 0:00:24]} Qxh4 {[%emt 0:00:47]} 23. Rc4 {[%emt 0:04:23]} Qf6 {[%emt 0:01:07]} 24. Bf4 {[%emt 0:02:16]} b5 {[%emt 0:00:51]} 25. Rc1 {[%emt 0:01:46]} Qg6 {[%emt 0:00:49]} 26. e4 {[%emt 0:00:21]} Bg4 {[%emt 0:01:28]} 27. Qd3 {[%emt 0:01:01]} Nd7 {[%emt 0:00:35]} 28. Qg3 {[%emt 0:09:13]} Ne5 {[%emt 0:03:36]} 29. Rxc5 {[%emt 0:05:29]} dxc5 {[%emt 0:06:39]} 30. Bxe5 {[%emt 0:01:26]} Rc8 {[%emt 0:00:34]} 31. Bxg7 {[%emt 0:03:21]} Kxg7 {[%emt 0:00:02]} 32. f4 {[%emt 0:02:43]} c4 {[%emt 0:01:49]} 33. Rc1 {[%emt 0:06:35]} cxb3 {[%emt 0:03:10]} 34. Rxc8 {[%emt 0:15:50]} Bxc8 {[%emt 0:00:11]} 35. Qxb3 {[%emt 0:00:00]} Qb6+ {[%emt 0:00:32]} 36. Kh2 {[%emt 0:00:00]} Qf6 {[%emt 0:03:02]} 37. Qg3+ {[%emt 0:00:00]} Kh7 {[%emt 0:00:26]} 38. e5 {[%emt 0:00:00]} Qf5 {[%emt 0:02:00]} 39. d6 {[%emt 0:00:00]} Be6 {[%emt 0:01:52]} 40. Bh3 {[%emt 0:00:00]} Qc2+ {[%emt 0:00:00]} 41. Qg2 {[%emt 0:01:52]} Qc4 {[%emt 0:00:53]} 42. Kg3 {[%emt 0:06:54]} Qd4 {[%emt 0:07:39]} 43. Qc2+ {[%emt 0:03:16]} Kg7 {[%emt 0:00:12]} 44. Bxe6 {[%emt 0:00:48]} fxe6 {[%emt 0:01:33]} 45. Qc7+ {[%emt 0:00:32]} Kg6 {[%emt 0:00:08]} 46. Qc2+ {[%emt 0:00:06]} Kg7 {[%emt 0:02:22]} 47. Kf3 {[%emt 0:00:05]} h5 {[%emt 0:00:41]} 48. Qc7+ {[%emt 0:03:37]} Kg6 {[%emt 0:00:17]} 49. d7 {[%emt 0:02:32]} Qd3+ {[%emt 0:00:19]} 50. Kf2 {[%emt 0:00:13]} Qd2+ {[%emt 0:00:05]} 51. Kf3 {[%emt 0:00:04]} Qd3+ {[%emt 0:00:02]} 52. Kf2 {[%emt 0:00:37]} Qd2+ {[%emt 0:00:04]} 53. Kf1 {[%emt 0:03:12]} Qd1+ {[%emt 0:00:10]} 54. Kf2 {[%emt 0:00:08]} Qd2+ {[%emt 0:00:03]} 55. Kf1 {[%emt 0:00:38]} 1/2-1/2

[Event "Azerbaijan-ch 1st League 2025"]
[Site "Baku"]
[Date "2025.01.13"]
[Round "8.17"]
[White "Imranli, Kenan"]
[Black "Alizada, Agshin"]
[Result "0-1"]
[Annotator "NA RC"]
[ECO "C01"]
[WhiteElo "1758"]
[BlackElo "2116"]
[PlyCount "70"]
[EventDate "2025.01.05"]
[EventType "swiss"]
[EventCountry "AZE"]
[SourceTitle "playchess.com"]
[Source "ChessBase"]
[SourceQuality "1"]
[TimeControl "40/5400+30:1800+30"]

{[%evp 32,68,79,22,24,32767,-80,-62,-39,-80,0,-18,0,-149,-175,-354,-339,32767,32767,32767,32767,32767,32767,-434,-534,-738,-771,-700,-798,-692,-327,-325,-364,-650,-472,-491,-530,-2236,-1283]} 1. e4 {[%emt 0:00:02]} e6 {[%emt 0:01:38]} 2. d4 {[%emt 0:00:24]} d5 {[%emt 0:00:03]} 3. exd5 {[%emt 0:00:12]} exd5 {[%emt 0:00:13]} 4. Nf3 {[%emt 0:00:18]} c5 {[%emt 0:00:47]} 5. Bb5+ {[%emt 0:01:13]} Nc6 {[%emt 0:00:07]} 6. O-O {[%emt 0:00:52]} Be7 {[%emt 0:00:08] C01: French: Exchange Variation.} 7. dxc5 {[%emt 0:00:25]} Nf6 {[%emt 0:00:07]} 8. h3 {[%emt 0:00:37]} O-O {[%emt 0:00:07]} 9. Bxc6 {[%emt 0:00:40]} bxc6 {[%emt 0:00:05]} 10. Be3 {[%emt 0:00:06]} Rb8 {[%emt 0:01:01]} 11. Nbd2 {[%emt 0:00:23]} a5 {[%emt 0:01:09]} 12. a4 {[%emt 0:01:48]} Qc7 {[%emt 0:02:12]} 13. Nb3 {[%emt 0:00:33]} Ne4 {[%emt 0:00:42]} 14. Bd4 {[%emt 0:04:03]} Qa7 {[%emt 0:02:01]} 15. Ne5 {[%emt 0:01:09]} Qc7 {[%emt 0:04:06]} 16. f3 {[%emt 0:04:23]} Ng5 {[%emt 0:13:47]} 17. Qd2 {[%emt 0:06:04]} (17. Re1 $16) 17... Ne6 {[%emt 0:00:59]} 18. Rad1 {[%emt 0:08:51]} Nxd4 {[%emt 0:04:12]} 19. Qxd4 {[%emt 0:00:12]} Rb4 {[%emt 0:00:31]} (19... Bf5 $5 20. Qc3 Bxc2 21. Qxc2 Qxe5 $17) 20. Qe3 {[%emt 0:01:19]} Bf6 {[%emt 0:01:24]} (20... Ba6 $5 21. Nd3 Bxd3 (21... Rxa4 22. Ra1 $17) 22. Rxd3 Rc4 $11 (22... Rxa4 23. Re1 $17)) 21. Rfe1 {[%emt 0:05:32]} Bh4 {[%emt 0:01:32]} 22. Re2 {[%emt 0:01:27] [#]} (22. Nd3 $1 $11 {remains equal.} Rxa4 (22... Bxe1 23. Nxb4 Bxb4 24. c3 $14) 23. Ra1) 22... Re8 $1 {[%emt 0:00:25]} ({Stronger than} 22... Rxa4 23. Rd4 Rxd4 24. Qxd4 $15 (24. Nxd4 Ba6 $15)) 23. f4 {[%emt 0:05:34]} Ba6 {[%emt 0:01:36]} ({Not} 23... Rxa4 24. Qf3 $15) 24. Red2 {[%emt 0:03:48]} f6 {[%emt 0:00:12]} 25. g3 {[%emt 0:00:28]} fxe5 {[%emt 0:00:06]} 26. gxh4 {[%emt 0:00:03]} Rxf4 {[%emt 0:00:47]} 27. Qg3 $2 {[%emt 0:02:35]} (27. Rf2 Rxh4 28. Nd4) 27... Ref8 {[%emt 0:00:11]} 28. Rg2 {[%emt 0:00:18]} Rf3 {[%emt 0:00:37]} (28... Rxa4 $2 29. Nd4 Rf6 (29... Rxd4 30. Rxd4 Bf1 31. Rh2 $11) 30. h5 $19) 29. Qg5 {[%emt 0:01:38]} e4 {[%emt 0:00:20]} 30. Nd2 {[%emt 0:00:49]} R3f4 {[%emt 0:01:27]} (30... Rxh3 $142 31. c4 e3 (31... dxc4 32. Nxe4 c3 33. bxc3 $17) (31... Bxc4 $2 32. Nxc4 dxc4 33. Qg4 $19)) 31. Qg3 {[%emt 0:04:40]} Qe7 {[%emt 0:00:14]} 32. Kh1 $2 {[%emt 0:00:23]} (32. Re1) 32... Rxh4 {[%emt 0:01:42]} ({Worse is} 32... Qxh4 33. Qxg7#) 33. Rdg1 {[%emt 0:00:13]} g6 {[%emt 0:00:20]} 34. Nb3 {[%emt 0:02:37]} Bc8 $19 {[%emt 0:05:03]} 35. Rh2 {[%emt 0:01:00]} e3 {[%emt 0:58:09]} 0-1

[Event "Azerbaijan-ch 1st League 2025"]
[Site "Baku"]
[Date "2025.01.14"]
[Round "9.1"]
[White "Suleymanli, Suleyman"]
[Black "Ibrahimli, Murad"]
[Result "1/2-1/2"]
[Annotator "TA"]
[ECO "E05"]
[WhiteElo "2280"]
[BlackElo "2415"]
[PlyCount "61"]
[EventDate "2025.01.05"]
[EventType "swiss"]
[EventCountry "AZE"]
[SourceTitle "playchess.com"]
[Source "ChessBase"]
[SourceQuality "1"]
[TimeControl "40/5400+30:1800+30"]

{[%evp 15,61,8,6,18,14,22,14,-1,-15,0,0,0,0,0,0,0,2,0,0,0,0,0,0,0,0,0,0,0,0,0,0,0,0,0,0,0,0,0,0,0,0,0,0,0,0,0,0,0]} 1. Nf3 {[%emt 0:00:03]} d5 {[%emt 0:00:17]} 2. g3 {[%emt 0:00:08]} Nf6 {[%emt 0:00:47]} 3. Bg2 {[%emt 0:00:32]} e6 {[%emt 0:01:25]} 4. O-O {[%emt 0:02:16]} Be7 {[%emt 0:00:08]} 5. d4 {[%emt 0:00:10]} O-O {[%emt 0:00:07]} 6. c4 {[%emt 0:00:06]} dxc4 {[%emt 0:01:19]} 7. Qc2 {[%emt 0:01:31]} a6 {[%emt 0:01:18]} 8. a4 {[%emt 0:00:13]} Bd7 {[%emt 0:01:08]} 9. Rd1 {[%emt 0:00:15][%cal Of3e5]} Bc6 {[%emt 0:01:10]} 10. Bg5 {[%emt 0:00:09]} b5 {[%emt 0:01:54]} 11. Bxf6 {[%emt 0:02:52]} Bxf6 {[%emt 0:00:29]} 12. Nc3 {[%emt 0:00:08]} Qe8 {[%emt 0:07:53]} 13. d5 {[%emt 0:05:44]} exd5 {[%emt 0:05:29]} 14. Nd4 $1 {[%emt 0:05:04]} Qe5 {[%emt 0:02:34]} 15. e4 {[%emt 0:01:47]} dxe4 {[%emt 0:00:48]} 16. Nxe4 {[%emt 0:00:13] A dynamic duo of knights.} Ra7 {[%emt 0:00:39][%cal Ba8a7,Ba7b7,Bb7b4][%mdl 32]} (16... bxa4 $2 {is the wrong capture.} 17. Nxc6 Nxc6 18. Qxc4 $18 (18. Qxa4 Nd4 $14)) 17. Nxf6+ {[%emt 0:00:45]} Qxf6 {[%emt 0:00:07]} 18. axb5 {[%emt 0:00:04]} Bxg2 {[%emt 0:00:11]} 19. Kxg2 {[%emt 0:00:02]} Rb7 {[%emt 0:00:13]} 20. bxa6 {[%emt 0:00:17]} Nxa6 {[%emt 0:00:06]} 21. Ra3 {[%emt 0:00:18][%cal Oa3f3]} c5 {[%emt 0:00:29]} 22. Qxc4 {[%emt 0:00:34]} Rb4 {[%emt 0:00:09]} 23. Qxa6 {[%emt 0:00:44]} Qxa6 {[%emt 0:00:05]} 24. Rxa6 {[%emt 0:00:02]} cxd4 $11 {[%emt 0:00:09][%mdl 4096] Endgame KRR-KRR} 25. Rd6 {[%emt 0:00:04]} Rxb2 {[%emt 0:00:07]} 26. R1xd4 {[%emt 0:00:02]} Rb5 {[%emt 0:00:19]} 27. h4 {[%emt 0:00:03]} h5 {[%emt 0:00:08]} 28. R6d5 {[%emt 0:00:04]} Rxd5 {[%emt 0:00:07]} 29. Rxd5 {[%emt 0:00:01]} g6 {[%emt 0:00:08]} 30. Kf3 {[%emt 0:00:01]} Kg7 {[%emt 0:00:09]} 31. Kf4 {[%emt 0:00:07]} 1/2-1/2

[Event "Azerbaijan-ch 1st League 2025"]
[Site "Baku"]
[Date "2025.01.14"]
[Round "9.2"]
[White "Rustamov, Rustam"]
[Black "Atakishiyev, Elmar"]
[Result "1/2-1/2"]
[Annotator "TA"]
[ECO "B92"]
[WhiteElo "2305"]
[BlackElo "2408"]
[PlyCount "75"]
[EventDate "2025.01.05"]
[EventType "swiss"]
[EventCountry "AZE"]
[SourceTitle "playchess.com"]
[Source "ChessBase"]
[SourceQuality "1"]
[TimeControl "40/5400+30:1800+30"]

{[%evp 16,75,0,0,0,0,4,0,0,-32,-18,-26,0,0,0,0,0,-20,-8,0,-10,-9,0,0,4,9,19,16,19,15,18,12,14,10,12,13,14,13,14,13,13,5,0,2,11,11,11,0,7,0,8,11,12,0,6,0,14,0,0,0,14,15]} 1. e4 {[%emt 0:00:03]} c5 {[%emt 1:31:00]} 2. Nf3 {[%emt 0:00:22]} d6 {[%emt 0:00:00]} 3. d4 {[%emt 0:00:43]} cxd4 {[%emt 0:00:00]} 4. Nxd4 {[%emt 0:00:04]} Nf6 {[%emt 0:00:00]} 5. Nc3 {[%emt 0:00:05]} a6 {[%emt 0:00:00]} 6. Be2 {[%emt 0:00:13]} e5 {[%emt 0:00:00]} 7. Nf3 {[%emt 0:00:08][%cal Bd4f3,Bf3h2,Bh2g4][%mdl 32]} h6 {[%emt 0:00:00]} 8. h3 {[%emt 0:00:23]} Be7 {[%emt 0:00:00]} 9. O-O {[%emt 0:02:33]} O-O {[%emt 0:00:00]} 10. Nh2 {[%emt 0:00:17]} b5 {[%emt 0:00:00]} 11. Ng4 {[%emt 0:04:01]} Nbd7 {[%emt 0:00:00]} 12. Nd5 {[%emt 0:10:00]} Nxd5 {[%emt 0:00:00]} 13. Qxd5 {[%emt 0:00:09]} Nb6 {[%emt 0:00:00]} 14. Qd1 {[%emt 0:01:21]} Be6 {[%emt 0:00:00]} 15. b3 {[%emt 0:04:46]} Qc7 {[%emt 0:00:00]} 16. Be3 {[%emt 0:02:22]} Rfd8 {[%emt 0:00:00]} 17. Bxb6 {[%emt 0:07:26]} Qxb6 {[%emt 0:00:00]} 18. Ne3 {[%emt 0:00:18] Dodges d5} Rac8 {[%emt 0:00:00]} 19. c4 {[%emt 0:04:14]} Bg5 {[%emt 0:00:00]} 20. Nd5 {[%emt 0:02:01]} Bxd5 {[%emt 0:00:00]} 21. Qxd5 {[%emt 0:00:31]} Rc5 {[%emt 0:00:00]} 22. Qd1 {[%emt 0:01:37]} b4 {[%emt 0:00:00]} 23. Qc2 {[%emt 0:02:44]} a5 {[%emt 0:00:00]} 24. g3 {[%emt 0:03:24]} Ra8 {[%emt 0:00:00]} 25. a4 {[%emt 0:02:47]} bxa3 {[%emt 0:00:00]} 26. Rxa3 {[%emt 0:01:21]} Rb8 {[%emt 0:00:00]} 27. Rd1 {[%emt 0:01:44]} Bd8 {[%emt 0:00:00]} 28. Rd3 {[%emt 0:00:57] Black is weak on the light squares} Bc7 {[%emt 0:00:00]} 29. Kg2 {[%emt 0:03:37]} Qb7 {[%emt 0:00:00]} 30. Bf3 {[%emt 0:06:04]} Rc6 {[%emt 0:00:00]} 31. Rd5 {[%emt 0:01:27]} Qb4 {[%emt 0:00:00]} 32. Qa2 {[%emt 0:02:01]} Rc5 {[%emt 0:00:00]} 33. Rd3 {[%emt 0:01:22]} Qb7 {[%emt 0:00:00]} 34. Qe2 {[%emt 0:02:16]} Qc6 {[%emt 0:00:00]} 35. Qd2 {[%emt 0:02:59]} Qb7 {[%emt 0:00:00]} 36. Qe2 {[%emt 0:02:55]} Qc6 {[%emt 0:00:00]} 37. Qd2 {[%emt 0:01:37]} Qb6 {[%emt 0:00:00]} 38. h4 {[%emt 0:02:04]} 1/2-1/2

[Event "Azerbaijan-ch 1st League 2025"]
[Site "Baku"]
[Date "2025.01.14"]
[Round "9.3"]
[White "Ahmad, Khagan"]
[Black "Ughuzov, Ravan"]
[Result "0-1"]
[Annotator "TA"]
[ECO "E01"]
[WhiteElo "2406"]
[BlackElo "2250"]
[PlyCount "78"]
[EventDate "2025.01.05"]
[EventType "swiss"]
[EventCountry "AZE"]
[SourceTitle "playchess.com"]
[Source "ChessBase"]
[SourceQuality "1"]
[TimeControl "40/5400+30:1800+30"]

{[%evp 9,78,18,27,38,22,22,32,18,25,23,34,5,18,19,27,22,44,49,36,43,58,45,39,27,32,35,32,39,89,14,14,0,0,10,35,29,33,22,34,31,30,31,25,20,25,10,7,0,0,0,0,-3,-12,-10,0,0,0,-22,0,-33,-34,-190,-141,-463,-445,-938,-916,-1879,-1794,-1595,-1528]} 1. Nf3 {[%emt 0:00:07]} Nf6 {[%emt 0:00:58]} 2. c4 {[%emt 0:00:17]} e6 {[%emt 0:00:04]} 3. g3 {[%emt 0:00:07]} d5 {[%emt 0:00:05]} 4. d4 {[%emt 0:00:04]} Bd6 {[%emt 0:03:06]} 5. Bg2 {[%emt 0:00:09]} h6 {[%emt 0:00:03]} 6. O-O {[%emt 0:00:10]} O-O {[%emt 0:00:03]} 7. Qc2 {[%emt 0:00:21]} b6 {[%emt 0:00:08]} 8. Nc3 {[%emt 0:00:41]} Bb7 {[%emt 0:00:12]} 9. cxd5 {[%emt 0:00:29]} exd5 {[%emt 0:01:30]} 10. Nb5 {[%emt 0:01:29]} Nc6 {[%emt 0:00:32]} 11. Nxd6 {[%emt 0:01:36]} cxd6 {[%emt 0:00:11]} 12. Bd2 {[%emt 0:02:24]} Ne4 {[%emt 0:03:37]} 13. Rfc1 {[%emt 0:01:51]} Qf6 {[%emt 0:01:15]} 14. e3 {[%emt 0:00:17]} Ne7 {[%emt 0:02:51]} 15. Qa4 {[%emt 0:04:35]} Bc8 {[%emt 0:17:12] ...Bg4 is the strong threat.} 16. Be1 {[%emt 0:10:23]} Bg4 {[%emt 0:02:01]} 17. Nd2 {[%emt 0:00:04]} Ng5 {[%emt 0:00:11][%cal Be4g5,Bg5f3,Bf3e1][%mdl 32]} 18. Kh1 {[%emt 0:19:45]} Rfc8 {[%emt 0:08:07] Wards off Rc7} ({Black should try} 18... a6 $14) 19. h4 {[%emt 0:07:04]} (19. Rxc8+ $16 Rxc8 20. Qxa7) 19... Nf3 $1 $11 {[%emt 0:00:27]} 20. Qd1 {[%emt 0:03:01]} Nxe1 $1 {[%emt 0:03:19]} 21. Qxe1 {[%emt 0:46:06]} g5 {[%emt 0:00:33]} 22. hxg5 {[%emt 0:00:00]} hxg5 {[%emt 0:00:16]} 23. Kg1 {[%emt 0:00:00]} Kg7 {[%emt 0:02:34]} 24. Rxc8 {[%emt 0:00:00]} Rxc8 {[%emt 0:00:06]} 25. Rc1 {[%emt 0:00:00]} Qe6 {[%emt 0:05:07]} 26. Rxc8 {[%emt 0:00:00]} Qxc8 {[%emt 0:00:16]} 27. e4 {[%emt 0:00:00]} Qe6 {[%emt 0:15:48]} 28. Qe3 {[%emt 0:00:00]} f6 {[%emt 0:00:33]} 29. f3 {[%emt 0:04:00]} Bh3 {[%emt 0:02:21]} 30. Qa3 {[%emt 0:00:00]} Bxg2 {[%emt 0:02:28]} 31. Kxg2 {[%emt 0:00:00]} dxe4 {[%emt 0:00:23]} 32. fxe4 {[%emt 0:00:00][%mdl 4096] Endgame KQN-KQN} a5 {[%emt 0:00:08]} 33. Qc3 {[%emt 0:01:03]} Qxa2 {[%emt 0:04:03]} 34. d5 {[%emt 0:00:53]} b5 {[%emt 0:03:25]} 35. Nf3 $2 {[%emt 0:00:32] [#]} (35. Kf2 $15) 35... Kf7 {[%emt 0:00:37]} (35... Qb1 $1 $19 {[%cal Rb1e4]} 36. e5 (36. Nxg5 $2 {is the wrong capture.} Kg6 $19) 36... Nxd5 (36... dxe5 37. d6 $15) 37. exf6+ Nxf6 (37... Kg6 38. Qd2 $17) 38. Nxg5 b4) 36. Kh3 $2 {[%emt 0:00:30][%mdl 8192]} (36. Nd2 $17 {is tougher.}) 36... Qb1 $19 {[%emt 0:00:28]} 37. e5 {[%emt 0:00:29]} (37. Qe1 $142 Qxb2 38. Qxa5) 37... g4+ {[%emt 0:00:58]} 38. Kh2 {[%emt 0:00:28]} gxf3 {[%emt 0:01:58]} 39. e6+ {[%emt 0:00:16]} Kg6 {[%emt 0:00:18]} 0-1